bitfinex-derivatives/quotes_SOLF0:USTF0_20250202
["timestamp","ask_amount","ask_price","bid_price","bid_amount"]
[1738467876248,2.96,209.64,209.53,27.80913905]
[1738467876547,47.50285828,209.7,209.53,27.80913905]
[1738467876746,6.712,209.69,209.53,27.80913905]
[1738467876945,4.7712,209.65,209.53,27.80913905]
[1738467877243,2.9691,209.68,209.53,27.80913905]
[1738467877447,0.03647978,209.61,209.57,0.03506451]
[1738467879846,4.80837978,209.61,209.57,0.03506451]
[1738467880350,4.80837978,209.61,209.57,27.84420356]
[1738467880351,0.03647978,209.61,209.57,27.84420356]
[1738467880542,4.7706,209.67,209.57,27.84420356]
[1738467880744,10.0635,209.76,209.61,4.7719]
[1738467880950,10.0635,209.76,209.57,27.80913905]
[1738467881551,4.7705,209.68,209.57,27.80913905]
[1738467881752,0.03365172,209.69,209.64,0.03443669]
[1738467881949,10.0635,209.76,209.64,0.03443669]
[1738467882153,4.80080992,209.69,209.64,0.03443669]
[1738467882449,0.03070992,209.69,209.64,0.03443669]
[1738467882649,0.03070992,209.69,209.64,4.80543669]
[1738467883148,4.7706,209.67,209.64,0.03443669]
[1738467883347,0.03070992,209.69,209.64,0.03443669]
[1738467883848,4.7709,209.66,209.64,0.03443669]
[1738467884447,4.7705,209.68,209.64,0.03443669]
[1738467884662,0.03070992,209.69,209.64,0.03443669]
[1738467885755,0.03070992,209.69,209.64,4.80563669]
[1738467886450,0.03070992,209.69,209.64,0.03443669]
[1738467888055,59.01978462,209.85,209.67,27.80913905]
[1738467888253,6.5032,209.85,209.71,27.80913905]
[1738467888451,6.5032,209.85,209.75,27.80913905]
[1738467888655,6.5032,209.85,209.75,32.57763905]
[1738467888959,6.5032,209.85,209.75,27.80913905]
[1738467889359,0.03445605,209.82,209.78,0.03309688]
[1738467890061,19.69371923,209.87,209.79,27.80913905]
[1738467890253,4.7663,209.86,209.79,32.57683905]
[1738467890450,19.69371923,209.87,209.79,27.80913905]
[1738467891153,2.8524,209.94,209.81,4.7672]
[1738467891359,0.03344695,209.85,209.79,27.80913905]
[1738467891661,4.765,209.92,209.85,4.7663]
[1738467891861,4.765,209.92,209.79,27.80913905]
[1738467892061,2.8524,209.94,209.79,27.80913905]
[1738467892863,2.8524,209.94,209.84,0.03606054]
[1738467892864,4.79690686,209.89,209.84,0.03606054]
[1738467893258,0.03130686,209.89,209.84,4.80266054]
[1738467893463,0.03130686,209.89,209.84,0.03606054]
[1738467895263,4.79700686,209.89,209.84,0.03606054]
[1738467895466,0.03130686,209.89,209.84,0.03606054]
[1738467895861,0.03130686,209.89,209.84,4.80276054]
[1738467897069,3.9444,209.97,209.88,4.7658]
[1738467897368,4.7634,209.99,209.9,27.80913905]
[1738467897568,4.7634,209.99,209.93,4.7646]
[1738467897768,6.02,210.03,209.9,27.80913905]
[1738467898078,47.50285828,210.12,209.98,4.7634]
[1738467898372,0.03455492,209.99,209.94,27.84058952]
[1738467898573,0.03455492,209.99,209.88,27.80913905]
[1738467898574,3.8142,210.1,209.88,27.80913905]
[1738467898872,0.03231901,209.99,209.94,0.03026438]
[1738467899263,27.80913905,210.08,209.88,27.80913905]
[1738467899468,0.03081303,209.99,209.94,0.03249975]
[1738467899868,0.03081303,209.99,209.94,0.03182051]
[1738467900070,27.83995208,209.99,209.84,27.80913905]
[1738467900271,27.80913905,209.89,209.71,27.80913905]
[1738467900767,4.7681,209.78,209.7,94.4]
[1738467900971,27.80913905,209.8,209.7,94.4]
[1738467901273,4.7696,209.72,209.7,94.4]
[1738467901471,0.03164837,209.77,209.63,192.65534605]
[1738467901669,0.03164837,209.77,209.73,0.03019923]
[1738467901869,3.7563,209.84,209.73,0.03019923]
[1738467902068,0.03216431,209.77,209.75,27.80913905]
[1738467902271,2.851,209.88,209.75,27.80913905]
[1738467902479,3.7939,209.91,209.75,27.80913905]
[1738467902679,27.80913905,209.87,209.67,27.80913905]
[1738467902879,27.80913905,209.83,209.66,1.1655]
[1738467903079,2.851,209.86,209.67,27.80913905]
[1738467903373,4.7692,209.73,209.63,27.80913905]
[1738467903578,0.03607579,209.79,209.74,0.03233308]
[1738467903775,2.851,209.86,209.63,27.80913905]
[1738467904078,0.03385396,209.79,209.74,0.03218948]
[1738467905079,4.7708,209.66,209.56,46.94121029]
[1738467905277,27.80913905,209.72,209.56,46.94121029]
[1738467905473,2.9285,209.71,209.56,46.94121029]
[1738467906068,0.03048713,209.66,209.61,0.0341517]
[1738467906276,4.7715,209.63,209.61,0.0341517]
[1738467906775,0.03048713,209.66,209.61,0.0341517]
[1738467907768,0.03048713,209.66,209.54,94.38]
[1738467907769,27.80913905,209.65,209.54,94.38]
[1738467907981,3.663,209.64,209.54,94.38]
[1738467908978,0.03434128,209.61,209.57,0.03021433]
[1738467910379,4.7722,209.6,209.57,0.03021433]
[1738467910679,27.84348033,209.61,209.43,27.80913905]
[1738467910875,4.7747,209.49,209.39,27.80913905]
[1738467911076,27.80913905,209.57,209.39,27.80913905]
[1738467911474,4.7744,209.51,209.42,4.7762]
[1738467911678,27.80913905,209.57,209.42,4.7762]
[1738467911880,0.0337799,209.49,209.44,0.03447825]
[1738467912077,0.0337799,209.49,209.42,4.7762]
[1738467912279,0.0337799,209.49,209.44,0.03514453]
[1738467914886,0.0337799,209.49,209.45,4.7754]
[1738467915186,0.0337799,209.49,209.44,0.03514453]
[1738467915783,4.7754,209.46,209.44,0.03514453]
[1738467916378,27.80913905,209.48,209.29,27.80913905]
[1738467916582,27.80913905,209.43,209.24,27.80913905]
[1738467916779,2.9876,209.42,209.24,27.80913905]
[1738467917381,27.80913905,209.38,209.2,122.30913905]
[1738467917587,4.7785,209.32,209.31,0.03121303]
[1738467917883,0.03241858,209.35,209.31,0.03121303]
[1738467918289,0.03241858,209.35,209.2,94.5]
[1738467918588,3.78,209.41,209.21,27.80913905]
[1738467918882,27.80913905,209.39,209.21,27.80913905]
[1738467919088,27.80913905,209.35,209.2,94.5]
[1738467919289,27.80913905,209.31,209.13,27.80913905]
[1738467919488,2.99888571,209.3,209.25,0.03051631]
[1738467919790,2.9676,209.3,209.1,17.67101132]
[1738467920885,0.0351324,209.22,209.18,0.02595013]
[1738467921187,4.8160324,209.22,209.18,0.02595013]
[1738467921384,0.0351324,209.22,209.18,0.02595013]
[1738467923488,0.0351324,209.22,209.19,27.80913905]
[1738467923888,0.0351324,209.22,209.2,4.781]
[1738467924689,0.0351324,209.22,209.19,27.80913905]
[1738467925087,0.0351324,209.22,209.18,0.02595013]
[1738467925088,4.7811,209.21,209.18,0.02595013]
[1738467925284,0.0351324,209.22,209.18,0.02595013]
[1738467927995,4.7811,209.21,209.18,0.02595013]
[1738467928397,0.0351324,209.22,209.18,0.02595013]
[1738467928691,0.0351324,209.22,209.19,4.7814]
[1738467928998,0.0351324,209.22,209.18,0.02595013]
[1738467929393,4.8160324,209.22,209.18,0.02595013]
[1738467929592,0.0351324,209.22,209.18,0.02595013]
[1738467930594,0.0351324,209.22,209.2,4.7811]
[1738467930795,0.0351324,209.22,209.18,0.02595013]
[1738467932594,4.7812,209.21,209.18,0.02595013]
[1738467932995,4.7814,209.2,209.18,0.02595013]
[1738467933593,0.0351324,209.22,209.18,0.02595013]
[1738467933791,4.7815,209.19,209.18,0.02595013]
[1738467933988,0.0351324,209.22,209.18,0.02595013]
[1738467935191,0.0351324,209.22,209.09,15.79547864]
[1738467935592,4.7816,209.19,209.11,4.7832]
[1738467935895,3.7244,209.27,209.09,15.79547864]
[1738467936100,15.79547864,209.24,209.05,62.83268957]
[1738467936300,4.7824,209.16,209.09,4.7837]
[1738467936597,15.79547864,209.24,209.09,4.7837]
[1738467936798,0.03610862,209.15,209.05,62.83268957]
[1738467937002,0.03610862,209.15,209.05,15.79547864]
[1738467937399,4.81860862,209.15,209.08,4.7839]
[1738467937601,0.03610862,209.15,209.02,94.54]
[1738467937896,4.7832,209.12,209.1,2.12751132]
[1738467938101,3.7285,209.14,209.0,15.79547864]
[1738467938499,4.7834,209.11,209.03,4.785]
[1738467938804,0.03573371,209.09,209.0,15.79547864]
[1738467939002,0.03573371,209.09,209.07,4.784]
[1738467939203,0.03573371,209.09,209.0,15.79547864]
[1738467939700,4.81953371,209.09,209.02,4.7853]
[1738467940196,4.7841,209.08,209.0,20.58107864]
[1738467940400,0.03573371,209.09,209.0,15.79547864]
[1738467940805,0.03573371,209.09,209.01,4.7855]
[1738467941303,4.7843,209.07,209.0,15.79547864]
[1738467941599,0.03573371,209.09,209.0,15.79547864]
[1738467941805,0.03573371,209.09,209.03,4.7851]
[1738467942006,0.03573371,209.09,209.0,15.79547864]
[1738467943601,0.03573371,209.09,209.01,3.1272]
[1738467943897,7.7667,209.19,209.09,4.7836]
[1738467944100,2.9851,209.19,209.06,15.79547864]
[1738467944505,4.782,209.17,209.1,4.7834]
[1738467944808,2.9851,209.19,209.06,15.79547864]
[1738467945004,0.03197263,209.16,209.11,0.03573371]
[1738467945205,0.03197263,209.16,209.14,15.79547864]
[1738467945409,15.79547864,209.34,209.14,15.79547864]
[1738467945607,6.845,209.37,209.18,15.79547864]
[1738467945807,4.7787,209.32,209.23,4.7804]
[1738467946211,6.845,209.37,209.22,15.79547864]
[1738467946509,0.03668823,209.3,209.26,4.7798]
[1738467946710,0.03668823,209.3,209.25,0.03638881]
[1738467946904,0.03668823,209.3,209.24,4.7802]
[1738467947104,0.03668823,209.3,209.25,0.03009837]
[1738467948011,0.03668823,209.3,209.28,4.7794]
[1738467948212,0.03668823,209.3,209.26,15.79547864]
[1738467949011,0.03668823,209.3,209.25,0.03009837]
[1738467949204,0.03668823,209.3,209.28,4.7794]
[1738467949408,6.5701,209.46,209.28,15.79547864]
[1738467949603,6.5701,209.46,209.32,15.79547864]
[1738467949806,15.79547864,209.42,209.24,15.79547864]
[1738467950209,22.36557864,209.46,209.28,15.79547864]
[1738467950409,6.5701,209.46,209.32,15.79547864]
[1738467950712,6.5701,209.46,209.35,0.03322813]
[1738467950713,0.03062938,209.39,209.35,0.03322813]
[1738467951007,4.7775,209.37,209.35,0.03322813]
[1738467951407,3.0263,209.38,209.23,3.1606]
[1738467951604,4.7782,209.34,209.23,3.1606]
[1738467951914,18.82177864,209.38,209.23,3.1606]
[1738467952113,3.0263,209.38,209.24,15.79547864]
[1738467952612,0.03016746,209.33,209.29,0.03161428]
[1738467953904,4.7788,209.31,209.29,0.03161428]
[1738467956714,0.03016746,209.33,209.29,0.03161428]
[1738467957916,0.03016746,209.33,209.31,4.7786]
[1738467958115,0.03016746,209.33,209.32,15.79547864]
[1738467958310,4.7765,209.41,209.35,4.7778]
[1738467958517,3.0414,209.45,209.35,4.7778]
[1738467958817,3.0414,209.45,209.32,15.79547864]
[1738467959113,3.0414,209.45,209.28,15.79547864]
[1738467959417,3.0414,209.45,209.34,0.03127043]
[1738467959418,0.03318576,209.39,209.34,0.03127043]
[1738467962219,3.8476,209.53,209.37,15.79547864]
[1738467962419,3.8476,209.53,209.41,15.79547864]
[1738467962721,79.70908863,209.6,209.45,15.79547864]
[1738467962917,52.74720314,209.6,209.45,15.79547864]
[1738467963122,19.78020117,209.61,209.45,15.79547864]
[1738467963416,0.03404113,209.54,209.49,0.03645948]
[1738467964518,4.7742,209.51,209.49,0.03645948]
[1738467964824,0.03404113,209.54,209.49,0.03645948]
[1738467965719,19.78020117,209.61,209.52,15.79547864]
[1738467965918,4.7729,209.57,209.49,4.81085948]
[1738467966118,3.6966,209.62,209.48,15.79547864]
[1738467966319,19.49207864,209.62,209.41,15.79547864]
[1738467966622,15.79547864,209.58,209.41,15.79547864]
[1738467966819,3.1438,209.57,209.41,15.79547864]
[1738467967020,3.1438,209.57,209.47,0.03383208]
[1738467967219,0.03477844,209.52,209.47,0.03383208]
[1738467967525,4.7749,209.48,209.47,0.03383208]
[1738467967818,15.79547864,209.5,209.31,94.62]
[1738467968025,4.7782,209.34,209.31,94.62]
[1738467969122,0.03292591,209.35,209.31,94.62]
[1738467971626,0.03292591,209.35,209.34,15.79547864]
[1738467971819,3.7822,209.47,209.34,15.79547864]
[1738467972223,3.7822,209.47,209.38,15.79547864]
[1738467972523,52.74720314,209.61,209.38,15.79547864]
[1738467972723,4.62535797,209.59,209.43,4.7759]
[1738467972927,0.83084777,209.58,209.43,4.7759]
[1738467973226,0.03605048,209.53,209.49,0.03418592]
[1738467974324,4.7743,209.51,209.49,0.03418592]
[1738467974625,31.59095728,209.5,209.26,15.79547864]
[1738467974832,15.79547864,209.45,209.26,15.79547864]
[1738467975123,15.79547864,209.45,209.22,2.9365]
[1738467975124,15.79547864,209.41,209.22,2.9365]
[1738467975523,6.723,209.49,209.33,15.79547864]
[1738467975727,0.03392168,209.34,209.29,0.031308]
[1738467976030,15.79547864,209.43,209.22,2.9365]
[1738467976231,4.7781,209.34,209.29,0.03287222]
[1738467976527,0.03040044,209.34,209.22,2.9365]
[1738467977029,4.80850044,209.34,209.29,0.03567171]
[1738467977230,0.03040044,209.34,209.29,0.03567171]
[1738467977430,0.03040044,209.34,209.29,4.81477171]
[1738467977632,10.503,209.49,209.33,15.79547864]
[1738467978632,6.723,209.49,209.33,15.79547864]
[1738467978930,0.0326508,209.43,209.39,0.03534479]
[1738467979128,15.82812944,209.43,209.28,4.7793]
[1738467979334,15.82812944,209.43,209.27,3.78]
[1738467979534,15.82812944,209.43,208.62,31.82227676]
[1738467979535,15.79547864,209.43,209.2,110.37547864]
[1738467979728,25.64952087,209.37,209.2,94.58]
[1738467980128,4.7785,209.32,209.2,94.58]
[1738467980328,3.0486,209.31,209.2,94.58]
[1738467980528,3.08103213,209.31,209.26,0.03674762]
[1738467981832,0.03243213,209.31,209.26,0.03674762]
[1738467982444,0.03243213,209.31,209.26,25.68626849]
[1738467982743,0.03243213,209.31,209.27,4.7795]
[1738467982934,0.03243213,209.31,209.3,25.64952087]
[1738467983134,2.9077,209.42,209.3,25.64952087]
[1738467984041,22.79920117,209.47,209.3,25.64952087]
[1738467984436,0.03313329,209.41,209.36,0.03336749]
[1738467984839,4.7768,209.4,209.36,0.03336749]
[1738467985040,0.03313329,209.41,209.36,0.03336749]
[1738467985943,4.7772,209.38,209.36,0.03336749]
[1738467986543,4.7769,209.4,209.36,0.03336749]
[1738467986845,0.03313329,209.41,209.36,0.03336749]
[1738467987949,0.03313329,209.41,209.36,4.81086749]
[1738467988247,0.03313329,209.41,209.36,0.03336749]
[1738467988442,4.7772,209.38,209.36,0.03336749]
[1738467989044,0.03313329,209.41,209.24,2.9531]
[1738467989045,4.7793,209.29,209.24,2.9531]
[1738467989250,25.64952087,209.37,209.2,25.64952087]
[1738467989440,25.64952087,209.33,209.16,25.64952087]
[1738467989645,2.9717,209.32,209.15,94.6]
[1738467990249,4.7817,209.18,209.15,94.6]
[1738467990446,0.03054255,209.26,209.12,25.64952087]
[1738467990651,25.64952087,209.25,209.21,6.118e-05]
[1738467990949,2.9716,209.24,209.1,131.8769656]
[1738467991342,4.782,209.17,209.1,131.8769656]
[1738467991544,2.9716,209.24,209.1,131.8769656]
[1738467991947,0.03127983,209.16,209.12,25.64952087]
[1738467992452,3.94,209.31,209.12,25.68152237]
[1738467992647,2.8743,209.35,209.17,25.64952087]
[1738467992845,2.8743,209.35,209.21,25.64952087]
[1738467993245,7.7504,209.32,209.21,25.64952087]
[1738467993446,2.8743,209.35,209.25,25.64952087]
[1738467993745,0.03135632,209.29,209.25,25.64952087]
[1738467994142,3.0486,209.4,209.25,25.64952087]
[1738467994346,2.8743,209.41,209.32,25.64952087]
[1738467994543,4.7764,209.42,209.32,25.64952087]
[1738467994743,3.7598,209.44,209.32,25.64952087]
[1738467995254,0.03626573,209.4,209.36,0.03647853]
[1738467996457,4.7772,209.38,209.36,0.03647853]
[1738467997148,0.03626573,209.4,209.36,0.03647853]
[1738467997553,0.03626573,209.4,209.38,25.64952087]
[1738467998052,0.03626573,209.4,209.36,0.03647853]
[1738468000152,0.03626573,209.4,209.36,4.81397853]
[1738468000354,0.03626573,209.4,209.36,0.03647853]
[1738468001944,0.03626573,209.4,209.17,3.9]
[1738468002350,25.64952087,209.42,209.17,3.9]
[1738468002546,25.64952087,209.46,209.17,3.9]
[1738468002751,5.9148,209.49,209.33,25.64952087]
[1738468003354,0.03239915,209.43,209.39,0.03390064]
[1738468003754,4.80849915,209.43,209.39,0.03390064]
[1738468004858,4.7766,209.41,209.39,0.03390064]
[1738468005853,0.03239915,209.43,209.39,0.03390064]
[1738468006756,4.7765,209.41,209.39,0.03390064]
[1738468007158,0.03239915,209.43,209.39,0.03390064]
[1738468007358,4.7767,209.4,209.39,0.03390064]
[1738468007658,0.03239915,209.43,209.39,0.03390064]
[1738468008459,4.7765,209.41,209.39,0.03390064]
[1738468009661,0.03239915,209.43,209.39,0.03390064]
[1738468010061,29.45850117,209.56,209.42,25.64952087]
[1738468010255,4.774,209.52,209.42,25.64952087]
[1738468010461,29.45850117,209.56,209.46,25.64952087]
[1738468010764,4.7737,209.53,209.46,30.42472087]
[1738468011063,9.6783,209.56,209.46,30.42472087]
[1738468011263,4.7749,209.48,209.42,4.776]
[1738468011462,4.7749,209.48,209.47,0.03439533]
[1738468011962,0.03626937,209.5,209.37,4.7772]
[1738468012163,0.03626937,209.5,209.45,0.03554054]
[1738468012458,4.7753,209.46,209.45,4.054e-05]
[1738468012663,0.03526241,209.5,209.31,6.8944]
[1738468013060,25.64952087,209.49,209.31,6.8944]
[1738468013462,25.64952087,209.41,209.22,6.7758]
[1738468013666,6.0126,209.4,209.22,6.7758]
[1738468013862,0.03165383,209.34,209.29,0.03340296]
[1738468014458,4.7789,209.31,209.29,0.03340296]
[1738468014662,0.03165383,209.34,209.29,0.03340296]
[1738468014854,0.03165383,209.34,209.29,25.68292383]
[1738468015055,0.03165383,209.34,209.33,25.64952087]
[1738468015364,6.0126,209.48,209.33,25.64952087]
[1738468015564,6.0126,209.48,209.38,25.64952087]
[1738468015965,2.9432,209.48,209.38,25.64952087]
[1738468016264,19.76962814,209.46,209.34,25.64952087]
[1738468016469,4.776,209.43,209.41,0.0354155]
[1738468017068,4.7776,209.36,209.3,28.67372087]
[1738468017364,19.76962814,209.46,209.3,28.67372087]
[1738468017766,3.8048,209.45,209.3,28.67372087]
[1738468018265,4.7769,209.39,209.35,0.03432847]
[1738468018662,0.03575193,209.4,209.35,0.03432847]
[1738468019864,0.03575193,209.4,209.38,25.64952087]
[1738468020061,3.8048,209.52,209.38,25.64952087]
[1738468020262,2.9072,209.55,209.46,25.64952087]
[1738468020764,2.9072,209.55,209.42,25.64952087]
[1738468020967,4.7759,209.44,209.42,25.64952087]
[1738468021166,4.7759,209.44,209.37,4.7772]
[1738468021167,4.7759,209.44,209.38,25.64952087]
[1738468021669,4.7759,209.44,209.39,0.0349259]
[1738468021871,0.03465743,209.43,209.39,0.0349259]
[1738468022166,0.03465743,209.43,209.39,4.8118259]
[1738468022362,2.9072,209.55,209.42,25.64952087]
[1738468022567,2.9303,209.56,209.46,25.64952087]
[1738468022768,3.8048,209.58,209.5,25.64952087]
[1738468023459,4.7727,209.58,209.51,4.7741]
[1738468023660,0.03167414,209.56,209.54,25.64952087]
[1738468023867,19.76962814,209.6,209.54,25.64952087]
[1738468024068,46.81560838,209.61,209.58,25.64952087]
[1738468024265,74.32331257,209.63,209.58,25.64952087]
[1738468024460,128.08952898,209.65,209.62,25.64952087]
[1738468024759,78.85690054,209.65,209.63,4.7714]
[1738468024959,160.11191122,209.66,209.62,25.64952087]
[1738468024960,139.84940323,209.66,209.62,25.64952087]
[1738468025164,139.88092691,209.66,209.62,25.68201075]
[1738468025868,139.88092691,209.66,209.64,4.7711]
[1738468026062,132.67122691,209.66,209.64,4.7711]
[1738468026261,92.92436652,209.78,209.63,3.84]
[1738468026563,92.92436652,209.78,209.71,25.64952087]
[1738468026961,92.92436652,209.78,209.71,30.41902087]
[1738468027165,92.92436652,209.78,209.75,25.64952087]
[1738468027571,0.03420494,209.77,209.75,25.64952087]
[1738468027869,0.03420494,209.77,209.75,131.8769656]
[1738468028969,0.03420494,209.77,209.73,131.8769656]
[1738468029671,9.7462,209.97,209.76,25.64952087]
[1738468029873,9.7462,209.97,209.82,25.64952087]
[1738468030277,9.7462,209.97,209.82,157.52648647]
[1738468030478,9.7462,209.97,209.86,25.64952087]
[1738468030675,4.7645,209.94,209.86,25.64952087]
[1738468030976,0.03582987,209.94,209.89,0.03229267]
[1738468032379,4.7649,209.92,209.89,0.03229267]
[1738468032774,0.03582987,209.94,209.91,4.765]
[1738468032976,0.03582987,209.94,209.93,25.64952087]
[1738468033280,25.64952087,210.01,209.91,131.8769656]
[1738468033577,4.7646,209.93,209.91,131.8769656]
[1738468033976,4.7651,209.91,209.9,95.7210656]
[1738468034181,4.7651,209.91,209.9,69.4536656]
[1738468034878,4.7655,209.89,209.88,164.87681314]
[1738468035079,25.68173687,209.93,209.81,31.32901981]
[1738468035474,25.64952087,209.93,209.81,31.32901981]
[1738468036078,4.7669,209.83,209.81,31.32901981]
[1738468036773,4.7669,209.83,209.81,23.87071981]
[1738468036976,0.0309994,209.84,209.78,156.062907]
[1738468037280,0.0309994,209.84,209.74,25.64952087]
[1738468037475,0.0309994,209.84,209.78,25.64952087]
[1738468037671,25.64952087,209.97,209.78,25.64952087]
[1738468037981,25.64952087,209.97,209.81,4.7673]
[1738468038277,0.03204909,209.9,209.85,0.03127511]
[1738468038876,4.7656,209.89,209.85,0.03127511]
[1738468039077,0.03204909,209.9,209.85,0.03127511]
[1738468039974,4.766,209.88,209.85,0.03127511]
[1738468040177,0.03204909,209.9,209.85,0.03127511]
[1738468040880,25.64952087,209.89,209.85,0.03127511]
[1738468041276,4.7661,209.87,209.85,0.03127511]
[1738468042477,0.03204909,209.9,209.85,0.03127511]
[1738468042879,25.64952087,210.01,209.85,0.03127511]
[1738468043081,4.7636,209.98,209.87,25.64952087]
[1738468043284,25.64952087,210.01,209.83,25.64952087]
[1738468043481,25.64952087,209.97,209.8,3.84]
[1738468043984,4.7648,209.93,209.82,4.767]
[1738468044178,0.0361031,209.91,209.86,0.03269251]
[1738468044691,15.0,209.9,209.86,0.03269251]
[1738468045682,19.7654,209.9,209.86,0.03269251]
[1738468045883,15.0,209.9,209.75,28.73772087]
[1738468046186,15.0,209.9,209.75,3.0882]
[1738468046589,4.7663,209.86,209.75,7.8568]
[1738468046884,25.64952087,209.85,209.71,3.6496]
[1738468047081,4.7692,209.73,209.64,7.8355]
[1738468047281,25.64952087,209.81,209.64,3.0645]
[1738468047477,25.64952087,209.77,209.76,2.99e-05]
[1738468047686,0.03024864,209.75,209.63,94.42]
[1738468047886,25.64952087,209.73,209.55,6.228]
[1738468048084,4.7704,209.68,209.55,6.228]
[1738468048389,25.64952087,209.69,209.55,3.0645]
[1738468048688,4.7714,209.64,209.55,3.0645]
[1738468048989,4.80302741,209.64,209.6,0.03276732]
[1738468049380,0.03162741,209.64,209.6,0.03276732]
[1738468049586,0.03162741,209.64,209.6,6.732e-05]
[1738468049784,4.7718,209.62,209.6,6.732e-05]
[1738468049983,0.03162741,209.64,209.6,6.732e-05]
[1738468051183,4.7718,209.62,209.6,6.732e-05]
[1738468051888,30.42132087,209.62,209.6,6.732e-05]
[1738468052089,4.7743,209.51,209.45,2.8958]
[1738468052291,25.64952087,209.57,209.45,2.8958]
[1738468052790,25.64952087,209.57,209.41,3.871]
[1738468052988,25.64952087,209.53,209.41,3.871]
[1738468053484,0.03417238,209.51,209.35,6.1124]
[1738468053791,25.64952087,209.49,209.45,0.03648636]
[1738468054288,0.03337653,209.45,209.32,3.914]
[1738468054692,25.64952087,209.54,209.34,25.64952087]
[1738468054984,0.83371309,209.53,209.38,25.64952087]
[1738468055190,4.7747,209.49,209.39,4.7767]
[1738468055488,0.03450385,209.48,209.43,0.03219682]
[1738468055887,25.64952087,209.51,209.32,3.914]
[1738468056090,25.64952087,209.47,209.43,0.03176716]
[1738468056383,25.64952087,209.47,209.32,3.914]
[1738468056588,25.64952087,209.43,209.32,3.914]
[1738468056789,25.64952087,209.47,209.32,3.914]
[1738468057086,25.64952087,209.38,209.2,25.64952087]
[1738468057287,25.64952087,209.38,209.21,3.1244]
[1738468057482,30.42662087,209.38,209.37,5.496e-05]
[1738468057679,25.64952087,209.38,209.21,3.1244]
[1738468058282,25.64952087,209.38,209.21,7.9054]
[1738468058483,25.64952087,209.38,209.21,3.1244]
[1738468058689,0.03615982,209.32,209.27,0.03423911]
[1738468058997,4.7789,209.31,209.27,0.03423911]
[1738468059989,0.03615982,209.32,209.27,0.03423911]
[1738468060893,4.7793,209.29,209.27,0.03423911]
[1738468061086,4.7793,209.29,209.27,3.911e-05]
[1738468061286,0.03615982,209.32,209.27,3.911e-05]
[1738468061487,4.7793,209.29,209.27,3.911e-05]
[1738468062889,0.03615982,209.32,209.27,3.911e-05]
[1738468063293,0.03615982,209.32,209.3,4.7789]
[1738468063488,0.03615982,209.32,209.27,25.64955998]
[1738468063885,0.03615982,209.32,209.3,4.7789]
[1738468064090,0.03615982,209.32,209.27,25.64955998]
[1738468064290,0.03615982,209.32,209.3,4.7789]
[1738468064493,0.68310721,209.61,209.31,25.64952087]
[1738468064792,25.64952087,209.54,209.35,25.64952087]
[1738468064992,4.7741,209.52,209.39,25.64952087]
[1738468065193,3.86,209.56,209.39,25.64952087]
[1738468065688,0.0355359,209.5,209.45,0.03411087]
[1738468067295,25.64952087,209.68,209.47,25.64952087]
[1738468067490,0.83261817,209.67,209.47,25.64952087]
[1738468067692,0.83261817,209.67,209.51,25.64952087]
[1738468067892,25.64952087,209.68,209.51,25.64952087]
[1738468068391,0.03465432,209.62,209.57,0.03534387]
[1738468069492,0.03465432,209.62,209.57,4.80814387]
[1738468069691,0.03465432,209.62,209.57,0.03534387]
[1738468070090,4.7724,209.59,209.57,0.03534387]
[1738468070992,0.03465432,209.62,209.57,0.03534387]
[1738468071296,25.64952087,209.75,209.57,0.03534387]
[1738468071496,4.7703,209.69,209.58,4.7725]
[1738468071696,25.64952087,209.75,209.57,3.9144]
[1738468072096,25.64952087,209.79,209.6,25.64952087]
[1738468072297,25.64952087,209.83,209.64,25.64952087]
[1738468072495,0.03426005,209.72,209.67,0.03473085]
[1738468072694,40.64952087,209.9,209.61,2.9206]
[1738468072695,25.64952087,209.87,209.68,25.64952087]
[1738468072893,0.83151634,209.86,209.68,25.64952087]
[1738468073295,25.64952087,209.79,209.61,2.9206]
[1738468073997,0.0355076,209.72,209.68,0.03222212]
[1738468075394,4.7684,209.77,209.68,25.68174299]
[1738468075591,25.64952087,209.87,209.68,25.68174299]
[1738468075793,25.64952087,209.87,209.68,25.64952087]
[1738468075998,25.64952087,209.87,209.72,25.64952087]
[1738468076197,15.0,209.9,209.73,3.6765]
[1738468076395,25.64952087,209.87,209.73,3.6765]
[1738468076598,25.64952087,209.83,209.73,3.6765]
[1738468076792,25.64952087,209.83,209.79,0.03401419]
[1738468076992,0.03539794,209.84,209.79,0.03401419]
[1738468077199,15.0,209.9,209.8,25.64952087]
[1738468077797,15.0,209.9,209.83,4.7668]
[1738468077997,15.0,209.9,209.8,25.64952087]
[1738468078397,4.7664,209.86,209.83,0.03294177]